bitfinex-derivatives/quotes_SOLF0:USTF0_20241216
["timestamp","ask_amount","ask_price","bid_price","bid_amount"]
[1734342773962,9.91775288,218.98,218.84,2.2853]
[1734342774166,9.91775288,218.95,218.85,1.14293216]
[1734342774363,9.91775288,218.95,218.84,2.2853]
[1734342774566,2.2848,218.9,218.84,2.2853]
[1734342774969,2.2848,218.9,218.83,15.40610012]
[1734342774970,2.2848,218.9,218.85,2.2852]
[1734342775168,2.2848,218.89,218.85,2.2852]
[1734342775464,1.4505,218.99,218.86,9.91775288]
[1734342775865,1.4505,218.99,218.84,9.91775288]
[1734342775866,9.91775288,218.98,218.84,9.91775288]
[1734342776878,2.2846,218.92,218.86,2.2851]
[1734342777078,9.91775288,218.98,218.86,2.2851]
[1734342778276,9.91775288,218.98,218.88,2.2849]
[1734342779166,9.91775288,218.98,218.86,2.285]
[1734342780273,9.91775288,218.98,218.84,9.91775288]
[1734342780469,1.4505,218.99,218.87,9.91775288]
[1734342780778,1.4883,219.0,218.9,9.91775288]
[1734342781268,1.4883,219.0,218.92,2.2844]
[1734342781467,1.4883,219.0,218.9,9.91775288]
[1734342782077,1.4883,219.0,218.91,2.2846]
[1734342782774,1.4883,219.0,218.92,2.2844]
[1734342783071,9.91775288,219.07,218.93,9.91775288]
[1734342783280,2.2837,219.0,218.95,2.2841]
[1734342783474,9.91775288,219.04,218.92,1.5089]
[1734342783976,9.91775288,219.04,218.91,3.8167]
[1734342784170,1.5,219.1,218.87,11.42665288]
[1734342784171,9.91775288,219.01,218.87,11.42665288]
[1734342784977,9.91775288,219.01,218.89,2.2847]
[1734342784978,2.2843,218.94,218.89,2.2847]
[1734342786070,2.2844,218.93,218.89,2.2847]
[1734342787278,9.91775288,218.95,218.8,0.6989]
[1734342787482,9.91775288,218.95,218.82,9.91775288]
[1734342788078,2.2847,218.9,218.85,2.2851]
[1734342788278,9.91775288,218.95,218.85,2.2851]
[1734342788478,2.2847,218.9,218.85,2.2851]
[1734342788679,2.2847,218.9,218.82,15.44035984]
[1734342789183,9.91775288,218.95,218.82,15.44035984]
[1734342789382,9.91775288,218.95,218.85,2.2851]
[1734342789884,9.91775288,218.95,218.83,2.2853]
[1734342790179,2.2848,218.89,218.82,5.52260696]
[1734342790577,9.91775288,218.95,218.84,2.2853]
[1734342790784,9.91775288,218.95,218.82,5.52260696]
[1734342791279,9.91775288,218.95,218.83,2.2853]
[1734342791280,2.2851,218.86,218.83,2.2853]
[1734342791878,2.2848,218.89,218.84,2.2853]
[1734342792081,2.2848,218.89,218.81,9.91775288]
[1734342792582,2.2848,218.89,218.85,2.2851]
[1734342793082,2.2845,218.92,218.88,2.2849]
[1734342793277,9.91775288,218.98,218.84,9.91775288]
[1734342794282,5.57565886,218.93,218.84,9.91775288]
[1734342795487,2.2849,218.88,218.81,9.91775288]
[1734342795782,2.2849,218.88,218.82,6.07683295]
[1734342795981,2.2849,218.88,218.84,2.2853]
[1734342796295,5.57565886,218.93,218.81,9.91775288]
[1734342796480,2.2851,218.86,218.82,6.08505661]
[1734342796686,2.2851,218.86,218.83,1.14304244]
[1734342796884,2.285,218.88,218.81,9.91775288]
[1734342797084,2.285,218.88,218.82,6.08502139]
[1734342797280,2.285,218.88,218.84,2.2853]
[1734342797784,15.49341174,218.93,218.81,9.91775288]
[1734342797986,9.91775288,218.96,218.84,9.91775288]
[1734342798286,9.91775288,218.96,218.85,6.08867809]
[1734342798489,9.91775288,218.96,218.86,6.08867809]
[1734342798678,1.4795,218.99,218.87,1.14312273]
[1734342798887,1.4795,218.99,218.88,6.09250441]
[1734342799085,1.4795,218.99,218.89,6.09235212]
[1734342799285,2.2842,218.95,218.91,2.2845]
[1734342799788,2.2842,218.95,218.92,1.14280953]
[1734342799987,2.2842,218.95,218.91,2.2845]
[1734342800189,2.2843,218.94,218.92,1.14278327]
[1734342800389,2.2843,218.94,218.93,1.14278327]
[1734342800984,2.2844,218.93,218.79,7.01123394]
[1734342801182,2.2844,218.93,218.86,9.91775288]
[1734342801388,2.2844,218.93,218.9,2.2847]
[1734342801586,2.2844,218.93,218.91,6.10378648]
[1734342801884,2.2844,218.93,218.9,2.2847]
[1734342801885,2.2843,218.94,218.92,6.10378648]
[1734342802091,2.2843,218.94,218.93,6.10378648]
[1734342802492,2.2843,218.94,218.93,6.12088786]
[1734342803793,2.2843,218.94,218.93,6.12083038]
[1734342804189,11.39725288,218.99,218.93,6.12083038]
[1734342804397,11.39725288,218.99,218.86,9.91775288]
[1734342804398,2.284,218.97,218.94,8.40503038]
[1734342804698,9.91775288,218.99,218.95,6.12083038]
[1734342804897,9.91775288,218.99,218.96,6.12083038]
[1734342805097,9.91775288,218.99,218.91,2.2845]
[1734342805299,9.91775288,218.99,218.92,9.43689456]
[1734342805591,9.91775288,218.93,218.82,1.538]
[1734342805792,9.91775288,218.93,218.83,4.45689682]
[1734342806103,9.91775288,218.93,218.84,4.4568979]
[1734342806299,9.91775288,218.93,218.85,4.4568979]
[1734342806596,9.91775288,218.93,218.82,1.538]
[1734342806597,2.2846,218.91,218.86,6.7418979]
[1734342806798,2.2846,218.91,218.87,4.4568979]
[1734342806996,9.91775288,218.93,218.88,4.4568979]
[1734342807188,9.91775288,218.93,218.89,1.14299115]
[1734342807392,9.91775288,218.93,218.9,1.14299115]
[1734342807594,9.91775288,218.93,218.86,2.285]
[1734342807790,2.2848,218.89,218.87,4.45896368]
[1734342808001,2.2848,218.89,218.88,4.45896368]
[1734342808902,9.91775288,218.93,218.82,1.538]
[1734342809099,2.2843,218.94,218.9,2.2846]
[1734342809299,9.91775288,218.96,218.91,4.45957948]
[1734342809499,9.91775288,218.96,218.92,1.14299811]
[1734342809699,2.2844,218.93,218.89,2.2848]
[1734342810000,13.66,218.95,218.66,14.77277148]
[1734342810306,9.91775288,218.92,218.74,9.91775288]
[1734342810603,2.285,218.87,218.78,2.2859]
[1734342810902,5.5452668,218.89,218.76,1.5059]
[1734342811195,9.91775288,218.92,218.76,1.5059]
[1734342811396,1.5502,218.98,218.82,9.91775288]
[1734342811800,1.5502,218.98,218.83,1.5164]
[1734342812025,2.2843,218.94,218.85,2.2852]
[1734342813800,2.2845,218.92,218.84,3.0114]
[1734342815311,2.2845,218.92,218.84,5.2967]
[1734342815505,15.37867749,218.96,218.84,5.2967]
[1734342815800,15.37867749,218.96,218.84,3.0114]
[1734342816004,2.2843,218.94,218.85,2.2851]
[1734342816407,2.2843,218.94,218.85,9.91775288]
[1734342817604,2.2837,219.0,218.91,9.91775288]
[1734342817998,9.91775288,219.05,218.84,3.0114]
[1734342817999,5.61751582,219.02,218.84,3.0114]
[1734342818204,2.284,218.97,218.87,9.91775288]
[1734342819501,5.61751582,219.02,218.9,9.91775288]
[1734342819702,2.2836,219.01,218.93,9.91775288]
[1734342820404,2.2836,219.01,218.93,11.50035288]
[1734342820801,7.71319957,219.03,218.93,11.50035288]
[1734342821007,5.42989957,219.03,218.93,13.78465288]
[1734342821807,9.91775288,219.07,218.93,13.78465288]
[1734342821808,2.2834,219.02,218.94,2.2842]
[1734342822008,9.91775288,219.07,218.93,11.50035288]
[1734342823114,5.38094304,219.05,218.93,11.50035288]
[1734342823414,5.38094304,219.05,218.95,2.2841]
[1734342823415,2.2833,219.03,218.95,2.2841]
[1734342825010,2.2833,219.03,218.96,2.284]
[1734342825410,2.2832,219.05,218.96,9.91775288]
[1734342826013,5.55016365,219.06,218.96,9.91775288]
[1734342826615,2.2833,219.03,218.96,12.20175288]
[1734342827114,2.2833,219.03,218.96,9.91775288]
[1734342827307,2.2832,219.05,218.97,2.2839]
[1734342827513,5.55016365,219.06,218.97,2.2839]
[1734342828018,2.2833,219.03,218.98,6.34652767]
[1734342828717,6.34652767,219.05,218.98,6.34652767]
[1734342828918,2.2832,219.04,218.98,6.34652767]
[1734342829916,2.2833,219.03,218.98,6.34652767]
[1734342830916,2.283,219.06,219.0,2.2836]
[1734342831421,6.34652767,219.07,218.99,6.34652767]
[1734342831622,2.2831,219.05,218.99,8.63022767]
[1734342832022,6.34652767,219.07,218.99,6.34652767]
[1734342833114,2.2832,219.04,218.99,6.34652767]
[1734342833422,6.34652767,219.07,218.99,6.34652767]
[1734342835017,2.2833,219.03,218.99,6.34652767]
[1734342835222,6.34652767,219.01,218.93,1.5826]
[1734342835524,6.34652767,219.01,218.94,6.34652767]
[1734342835923,6.34652767,219.03,218.95,2.2841]
[1734342836526,6.34652767,219.03,218.96,6.34652767]
[1734342836722,2.2836,219.01,218.96,8.63042767]
[1734342838220,2.2836,219.01,218.97,2.2839]
[1734342838425,5.43230213,219.08,219.0,6.34652767]
[1734342838623,11.7788298,219.08,219.0,6.34652767]
[1734342838931,2.2831,219.05,219.01,2.2835]
[1734342839125,2.2831,219.05,219.0,6.34652767]
[1734342839527,2.2832,219.05,219.0,6.34652767]
[1734342839753,5.43230213,219.08,218.96,6.34652767]
[1734342839754,6.34652767,219.04,218.96,6.34652767]
[1734342840230,5.43230213,219.08,218.95,6.34652767]
[1734342840231,6.34652767,219.02,218.95,6.34652767]
[1734342841025,2.2836,219.0,218.95,8.63062767]
[1734342841530,6.34652767,219.02,218.95,8.63062767]
[1734342841730,6.34652767,218.98,218.93,1.5826]
[1734342841926,6.34652767,218.96,218.91,1.5784]
[1734342842121,6.34652767,218.96,218.89,6.34652767]
[1734342842531,2.2843,218.94,218.89,8.63132767]
[1734342843434,2.2843,218.94,218.9,2.2846]
[1734342844032,2.2841,218.95,218.91,2.2845]
[1734342844231,2.2841,218.95,218.86,15.27335962]
[1734342844736,2.2842,218.94,218.89,2.2847]
[1734342845425,2.2842,218.94,218.86,15.27335962]
[1734342845625,2.2842,218.94,218.9,2.2846]
[1734342848038,9.92415403,219.0,218.85,1.4706]
[1734342848237,2.2846,218.91,218.87,2.2849]
[1734342849239,2.2846,218.91,218.85,1.4706]
[1734342849240,2.2846,218.91,218.86,2.2851]
[1734342850543,2.2844,218.93,218.85,1.4706]
[1734342850943,9.92415403,219.0,218.87,9.92415403]
[1734342851140,2.2842,218.95,218.87,9.92415403]
[1734342852340,2.2842,218.95,218.9,2.2846]
[1734342852841,2.2842,218.95,218.87,9.92415403]
[1734342853048,2.2842,218.95,218.91,2.2845]
[1734342853565,2.284,218.97,218.92,2.2844]
[1734342853742,9.92415403,219.03,218.9,9.92415403]
[1734342854242,2.2838,218.98,218.94,2.2842]
[1734342854644,2.2838,218.98,218.9,9.92415403]
[1734342854938,2.2836,219.0,218.95,2.284]
[1734342855144,9.92415403,219.06,218.95,2.284]
[1734342855542,9.92415403,219.06,218.9,9.92415403]
[1734342855742,9.92415403,219.06,218.96,2.284]
[1734342856246,2.2836,219.0,218.96,2.284]
[1734342857036,2.2837,218.99,218.94,2.2841]
[1734342860338,2.2836,219.0,218.96,2.284]
[1734342860536,9.92415403,219.06,218.9,9.92415403]
[1734342861336,2.2836,219.01,218.94,2.2842]
[1734342861546,5.9304645,219.05,218.94,2.2842]
[1734342861953,2.2838,218.98,218.94,2.2842]
[1734342863048,2.2838,218.98,218.95,2.2841]
[1734342866043,2.2837,218.99,218.95,2.2841]
[1734342868847,2.2837,218.99,218.96,6.34880541]
[1734342869949,2.2837,218.99,218.95,8.63290541]
[1734342870750,2.2836,219.01,218.97,8.63270541]
[1734342870951,6.34880541,219.03,218.97,8.63270541]
[1734342871152,6.34880541,219.03,218.97,6.34880541]
[1734342871649,2.2837,219.0,218.97,6.34880541]
[1734342872645,2.2837,219.0,218.97,8.63270541]
[1734342874750,6.34880541,219.03,218.97,6.34880541]
[1734342874958,2.2835,219.02,218.97,6.34880541]
[1734342875255,2.2835,219.02,218.99,6.34880541]
[1734342876559,2.2835,219.02,218.99,8.63250541]
[1734342876950,6.34880541,219.04,218.97,6.34880541]
[1734342877158,6.34880541,219.0,218.86,4.5701]
[1734342877359,6.34880541,218.98,218.87,3.26596367]
[1734342877557,2.2842,218.95,218.91,8.63330541]
[1734342878256,6.34880541,218.96,218.85,1.4706]
[1734342878459,6.34880541,218.92,218.73,4.5729]
[1734342878662,6.34880541,218.9,218.77,6.30460148]
[1734342878956,6.34880541,218.9,218.83,6.34880541]
[1734342879156,2.2848,218.89,218.85,6.34880541]
[1734342879358,6.34880541,218.94,218.87,6.34880541]
[1734342879957,2.2846,218.91,218.87,6.34880541]
[1734342880662,6.34880541,218.94,218.87,6.34880541]
[1734342880863,2.2845,218.92,218.88,2.2849]
[1734342881462,2.2845,218.92,218.88,6.34880541]
[1734342881665,2.2846,218.91,218.88,6.34880541]
[1734342882467,2.2845,218.92,218.88,6.34880541]
[1734342884260,6.34880541,218.92,218.86,6.34880541]
[1734342884464,6.34880541,218.92,218.82,1.4632]
[1734342884664,6.34880541,218.92,218.84,6.34880541]
[1734342885461,2.285,218.88,218.84,6.34880541]
[1734342886258,2.285,218.88,218.84,8.63400541]
[1734342886466,6.34880541,218.92,218.86,6.34880541]
[1734342886759,1.4365,218.99,218.88,6.34880541]
[1734342886962,2.2842,218.95,218.9,6.34880541]
[1734342887165,6.34880541,218.98,218.92,6.34880541]
[1734342887961,2.2842,218.95,218.9,6.34880541]
[1734342888674,2.2842,218.95,218.9,8.63340541]
[1734342890669,11.92179892,218.98,218.89,2.2847]
[1734342890670,6.34880541,218.96,218.89,2.2847]
[1734342891870,2.2843,218.94,218.9,6.34880541]
[1734342892496,2.2844,218.93,218.9,6.34880541]
[1734342892891,6.34880541,218.96,218.91,2.2845]
[1734342894470,2.2841,218.95,218.91,2.2845]
[1734342895470,2.2843,218.94,218.91,2.2845]
[1734342895769,2.2843,218.94,218.87,1.4532]
[1734342895770,6.34880541,218.96,218.88,8.63360541]
[1734342896166,2.2844,218.93,218.88,8.63360541]
[1734342897270,2.2844,218.93,218.88,2.2848]
[1734342897974,6.34880541,218.94,218.88,2.2848]
[1734342898174,2.2845,218.92,218.88,2.2848]
[1734342899472,2.2844,218.93,218.89,2.2847]
[1734342899664,5.57299351,218.98,218.89,6.34880541]
[1734342899864,6.34880541,218.97,218.91,6.34880541]
[1734342900165,2.2842,218.95,218.91,8.63330541]
[1734342900665,6.34880541,218.97,218.91,8.63330541]
[1734342900871,2.2842,218.94,218.89,8.63350541]
[1734342901262,2.2841,218.96,218.91,6.34880541]
[1734342901485,1.5342,219.05,218.83,3.26366227]
[1734342901664,6.34880541,219.02,218.95,6.34880541]
[1734342901978,2.2836,219.0,218.95,6.34880541]
[1734342902568,2.2836,219.0,218.95,8.63290541]
[1734342903270,2.2837,218.99,218.95,8.63290541]
[1734342903471,5.36011411,219.03,218.85,3.0878]
[1734342903472,6.34880541,219.0,218.85,3.0878]
[1734342903679,6.34880541,218.98,218.91,6.34880541]
[1734342904181,2.284,218.96,218.91,8.63330541]
[1734342904374,6.34880541,218.96,218.89,6.34880541]
[1734342904575,2.2844,218.93,218.89,6.34880541]
[1734342904773,6.34880541,218.96,218.89,6.34880541]
[1734342904975,1.5383,219.02,218.89,6.34880541]
[1734342905273,2.2843,218.94,218.9,2.2846]
[1734342905485,6.34880541,218.96,218.89,6.34880541]
[1734342906071,2.2843,218.94,218.89,8.63350541]
[1734342908872,6.34880541,218.96,218.89,8.63350541]
[1734342909080,2.2844,218.93,218.89,8.63350541]
[1734342915182,6.34880541,218.96,218.89,8.63350541]
[1734342915379,6.34880541,218.96,218.89,6.34880541]
[1734342916585,2.2845,218.92,218.89,6.34880541]
[1734342917585,6.34880541,218.92,218.85,9.43660541]
[1734342918284,15.97410355,219.01,218.85,11.72180541]
[1734342918285,2.2848,218.89,218.85,11.72180541]
[1734342919394,2.285,218.87,218.85,7.84660541]
[1734342920296,2.2849,218.88,218.85,7.84660541]
[1734342921788,2.2847,218.9,218.86,2.2851]
[1734342923196,2.2847,218.9,218.87,6.34880541]
[1734342924395,2.2847,218.9,218.86,2.2851]
[1734342924396,5.94743326,219.0,218.89,6.34880541]
[1734342924596,4.5672,219.01,218.89,6.34880541]
[1734342924597,6.34880541,218.96,218.89,6.34880541]
[1734342924988,2.2844,218.93,218.86,2.2851]
[1734342925192,6.34880541,218.96,218.88,6.34880541]
[1734342926299,2.2845,218.92,218.88,8.63370541]
[1734342927499,2.2847,218.9,218.88,6.34880541]
[1734342927702,6.34880541,218.94,218.86,6.34880541]
[1734342928201,2.2847,218.9,218.86,8.63390541]
[1734342930997,2.2845,218.92,218.86,8.63390541]
[1734342931307,6.34880541,218.94,218.86,8.63390541]
[1734342933405,2.2847,218.9,218.86,8.63390541]
[1734342934807,6.34880541,218.94,218.86,8.63390541]
[1734342935008,6.34880541,218.92,218.82,1.4632]
[1734342935305,6.34880541,218.92,218.85,6.34880541]
[1734342936403,2.285,218.87,218.85,6.34880541]
[1734342936600,2.285,218.87,218.83,2.2854]
[1734342936805,2.285,218.87,218.85,6.34880541]
[1734342937407,2.2849,218.89,218.85,6.34880541]
[1734342937605,2.2849,218.89,218.87,6.34880541]
[1734342939003,2.2848,218.89,218.87,6.34880541]
[1734342940101,2.2849,218.88,218.85,8.63400541]
[1734342941207,2.2851,218.86,218.82,1.4632]
[1734342941500,2.2851,218.86,218.84,6.34880541]
[1734342942506,11.89078028,218.92,218.84,6.34880541]
[1734342943207,2.285,218.88,218.84,8.63400541]
[1734342943403,11.89078028,218.92,218.84,8.63400541]
[1734342944300,11.89078028,218.92,218.82,1.4632]
[1734342944301,11.89078028,218.92,218.79,5.49972835]
[1734342944501,2.2851,218.87,218.84,6.34880541]
[1734342948009,2.285,218.88,218.84,8.63400541]
[1734342948203,6.34880541,218.91,218.84,6.34880541]
[1734342948610,2.2849,218.88,218.85,2.2851]
[1734342950206,2.2849,218.88,218.84,6.34880541]
[1734342950506,2.2849,218.88,218.84,8.63410541]
[1734342950713,2.285,218.87,218.84,6.34880541]
[1734342951011,6.34880541,218.91,218.84,6.34880541]
[1734342951404,2.2848,218.89,218.85,2.2851]
[1734342951607,6.34880541,218.91,218.85,2.2851]
[1734342952505,2.2849,218.88,218.85,2.2851]
[1734342952811,6.34880541,218.95,218.87,2.285]
[1734342953015,6.34880541,218.97,218.9,6.34880541]
[1734342953210,6.34880541,218.97,218.9,8.63340541]
[1734342953413,250.54111722,219.01,218.92,6.34880541]
[1734342953612,250.54111722,219.01,218.79,5.49972835]
[1734342953613,2.2839,218.98,218.94,6.34880541]
[1734342953816,2.2839,218.98,218.96,6.34880541]
[1734342954219,11.70891952,219.03,218.96,6.34880541]
[1734342954408,2.2839,218.97,218.94,6.34880541]
[1734342955105,2.2838,218.98,218.94,6.34880541]
[1734342955305,5.36011411,219.03,218.96,6.34880541]
[1734342955512,5.36011411,219.03,218.98,6.34880541]
[1734342955705,250.54111722,219.06,219.0,6.34880541]
[1734342955911,6.34880541,219.07,219.0,6.34880541]
[1734342956516,2.2833,219.04,218.83,14.48849366]
[1734342956706,250.54111722,219.11,218.95,8.63290541]
[1734342956707,6.34880541,219.03,218.95,8.63290541]
[1734342956907,6.34880541,219.03,218.96,5.07791563]
[1734342957108,6.34880541,219.03,218.95,8.63290541]
[1734342957307,2.2835,219.01,218.96,7.36210247]
[1734342957512,2.2835,219.01,218.96,2.284]
[1734342959217,6.34880541,219.03,218.95,6.34880541]
[1734342959517,2.2838,218.98,218.95,6.34880541]
[1734342959718,5.41764334,219.05,218.97,6.34880541]
[1734342959919,5.41764334,219.05,218.99,6.34880541]
[1734342960115,2.2833,219.03,218.99,8.63250541]
[1734342960818,2.2833,219.03,218.99,6.34880541]
[1734342962119,2.2835,219.01,218.97,6.34880541]
[1734342962521,6.34880541,219.05,218.97,6.34880541]
[1734342963422,2.2834,219.02,218.97,8.63270541]
[1734342963818,6.34880541,219.03,218.96,1.4516]
[1734342964013,6.34880541,219.03,218.96,7.80040541]
[1734342964217,6.34880541,219.01,218.95,3.0997]
[1734342964515,6.34880541,219.01,218.76,7.40411228]
[1734342964516,6.34880541,218.99,218.91,6.34880541]
[1734342965320,6.34880541,218.97,218.82,3.0803]
[1734342965522,6.34880541,218.97,218.89,6.34880541]
[1734342965716,6.34880541,218.95,218.89,6.34880541]
[1734342965911,6.34880541,218.93,218.86,6.34880541]
[1734342966114,2.2847,218.9,218.87,5.06885001]
[1734342966320,6.34880541,218.93,218.82,3.0803]
[1734342966513,10.03746444,219.03,218.84,6.34880541]
[1734342966514,6.34880541,218.91,218.84,6.34880541]
[1734342966714,6.34880541,218.91,218.82,5.3658]
[1734342966925,6.34880541,218.91,218.84,6.34880541]
[1734342967222,250.54111722,218.99,218.84,8.63410541]
[1734342967515,6.34880541,218.94,218.88,6.34880541]
[1734342968119,2.2845,218.92,218.88,6.34880541]
[1734342968918,6.34880541,218.94,218.88,6.34880541]
[1734342969118,6.34880541,218.96,218.88,6.34880541]
[1734342969518,6.34880541,218.94,218.88,6.34880541]
[1734342970526,2.2845,218.92,218.88,6.34880541]
[1734342971317,2.2846,218.91,218.88,6.34880541]
[1734342972425,2.2844,218.93,218.88,8.63360541]
[1734342972625,2.2844,218.93,218.9,6.34880541]
[1734342972820,6.34880541,218.97,218.9,6.34880541]
[1734342973419,2.2845,218.92,218.9,6.34880541]
[1734342974231,2.2844,218.93,218.9,6.34880541]
[1734342974427,10.03761492,219.03,218.92,6.34880541]
[1734342974732,6.34880541,219.0,218.92,6.34880541]
[1734342974931,2.2839,218.98,218.96,6.34880541]
[1734342975231,6.34880541,219.04,218.97,6.34880541]
[1734342975931,7.94310541,219.05,218.97,6.34880541]
[1734342976832,2.2837,219.0,218.97,6.34880541]
[1734342977037,6.34880541,219.03,218.97,6.34880541]
[1734342977334,6.34880541,219.03,218.95,6.34880541]
[1734342977533,6.34880541,219.01,218.95,6.34880541]
[1734342978132,2.284,218.97,218.95,6.34880541]
[1734342979135,6.34880541,219.01,218.95,6.34880541]
[1734342980331,6.34880541,218.99,218.93,6.34880541]
[1734342980932,6.34880541,218.97,218.88,2.2849]
[1734342981236,6.34880541,218.97,218.89,6.34880541]
[1734342981736,2.2843,218.94,218.91,6.34880541]
[1734342984035,6.34880541,218.98,218.91,6.34880541]
[1734342984334,6.34880541,219.0,218.93,6.34880541]
[1734342984730,2.2838,218.98,218.95,6.34880541]
[1734342985037,295.15634165,219.02,218.95,6.34880541]
[1734342985433,2.2839,218.97,218.95,6.34880541]
[1734342986156,2.2839,218.97,218.93,8.63310541]
[1734342988337,6.34880541,218.98,218.86,1.4643]
[1734342988540,6.34880541,218.98,218.91,6.34880541]
[1734342989342,2.2843,218.94,218.91,6.34880541]
[1734342994761,2.2841,218.95,218.91,6.34880541]
[1734342994953,11.81605958,219.0,218.93,6.34880541]
[1734342995349,2.2842,218.94,218.93,6.34880541]
[1734342995657,2.2842,218.94,218.92,6.34880541]
[1734342996651,6.34880541,218.96,218.89,6.34880541]
[1734342997352,2.2846,218.9,218.89,6.34880541]
[1734342999872,2.2845,218.91,218.89,6.34880541]
[1734343000055,6.34880541,218.96,218.89,6.34880541]
[1734343000957,6.34880541,218.96,218.86,3.7493]
[1734343001157,6.34880541,218.9,218.82,3.0803]
[1734343001462,6.34880541,218.9,218.83,6.34880541]
[1734343001853,6.34880541,218.88,218.83,6.34880541]
[1734343002257,11.55025592,218.97,218.82,1.5306]
[1734343002557,6.34880541,218.94,218.87,6.34880541]
[1734343003658,2.2848,218.89,218.85,2.2852]
[1734343003853,2.2848,218.89,218.86,6.34880541]
[1734343004361,2.2848,218.88,218.86,6.34880541]
[1734343008163,2.2847,218.89,218.86,6.34880541]
[1734343008356,2.2847,218.89,218.88,6.34880541]
[1734343008757,6.34880541,218.94,218.88,6.34880541]
[1734343008956,5.46725417,219.0,218.9,6.34880541]
[1734343009169,6.34880541,218.97,218.9,6.34880541]
[1734343010163,2.2844,218.92,218.9,6.34880541]
[1734343013670,5.46725417,219.0,218.91,5.07764692]
[1734343013861,5.46725417,219.0,218.93,6.34880541]
[1734343014170,2.284,218.97,218.93,8.63300541]
[1734343014568,5.46725417,219.0,218.93,6.34880541]
[1734343015071,6.34880541,218.99,218.93,6.34880541]
[1734343015871,2.2842,218.95,218.91,3.731]
[1734343016071,2.2842,218.95,218.92,6.34880541]
[1734343016477,2.284,218.96,218.92,8.63320541]
[1734343017368,2.2842,218.95,218.92,6.34880541]
[1734343019575,2.284,218.97,218.94,6.34880541]
[1734343019778,6.34880541,219.03,218.96,6.34880541]
[1734343020379,2.2838,218.99,218.96,6.34880541]
[1734343021582,2.2838,218.98,218.96,6.34880541]
[1734343023371,2.2838,218.98,218.94,2.2841]
[1734343023569,2.2841,218.96,218.94,6.34880541]
[1734343023767,6.34880541,219.01,218.94,6.34880541]
[1734343024178,2.2841,218.95,218.92,8.63320541]
[1734343024480,6.34880541,218.99,218.91,7.79540541]
[1734343024873,2.2844,218.93,218.91,7.79540541]
[1734343026078,2.2842,218.95,218.89,6.34880541]
[1734343026271,6.34880541,218.97,218.89,6.34880541]
[1734343028779,2.2845,218.92,218.89,6.34880541]
[1734343029074,6.34880541,218.97,218.89,6.34880541]
[1734343029272,6.34880541,218.97,218.88,2.2848]
[1734343029273,2.2847,218.89,218.88,6.34880541]
[1734343029481,2.2847,218.89,218.88,11.42680031]
[1734343029682,6.34880541,218.94,218.88,11.42680031]
[1734343029880,6.34880541,218.94,218.88,6.34880541]
[1734343030276,2.2847,218.9,218.88,6.34880541]
[1734343030482,6.34880541,218.94,218.88,6.34880541]
[1734343031584,6.34880541,218.92,218.86,7.81850541]
[1734343031783,6.34880541,218.92,218.87,5.07844611]
[1734343031979,6.34880541,218.92,218.86,7.81850541]
[1734343032177,2.2849,218.88,218.87,5.07844963]
[1734343032678,2.2849,218.87,218.86,6.34880541]
[1734343032876,2.2849,218.87,218.86,5.07843096]
[1734343033381,2.2851,218.86,218.84,6.34880541]
[1734343033583,2.2851,218.86,218.85,5.07830002]
[1734343034474,6.34880541,218.9,218.77,5.5746004]
[1734343034673,2.2853,218.84,218.82,6.34880541]
[1734343034873,2.2853,218.84,218.83,5.07820012]
[1734343035073,2.2847,218.9,218.83,5.07820012]
[1734343035279,6.34880541,218.92,218.85,6.34880541]
[1734343037079,260.59803741,218.99,218.85,6.34880541]
[1734343037375,10.05692019,218.98,218.85,6.34880541]
[1734343037574,2.285,218.86,218.85,6.34880541]
[1734343038283,2.285,218.86,218.83,6.34880541]
[1734343039286,6.34880541,218.87,218.76,4.4614]
[1734343039485,6.34880541,218.85,218.77,5.07694049]
[1734343039686,6.34880541,218.85,218.78,11.4257459]
[1734343039885,6.34880541,218.85,218.78,6.34880541]
[1734343040081,2.2854,218.83,218.78,6.34880541]
[1734343040280,6.34880541,218.85,218.77,6.34880541]
[1734343041585,5.56084311,218.9,218.59,9.58964753]
[1734343041786,6.34880541,218.83,218.77,6.34880541]
[1734343042282,2.2859,218.78,218.77,6.34880541]
[1734343042687,2.2857,218.8,218.77,6.34880541]
[1734343043383,2.2858,218.79,218.74,2.2862]
[1734343043584,6.34880541,218.83,218.76,6.34880541]
[1734343043786,6.34880541,218.83,218.77,5.07043959]
[1734343044088,2.2859,218.78,218.76,6.34880541]
[1734343044289,2.2859,218.78,218.77,5.0701056]